bitfinex/quotes_SOLUSD_20240808
["timestamp","ask_amount","ask_price","bid_price","bid_amount"]
[1723109692236,34.2234,155.68,155.58,65.0]
[1723109692640,27.8,155.68,155.58,65.0]
[1723109694249,21.8233,155.69,155.57,6.6163]
[1723109694250,27.8,155.66,155.57,6.6163]
[1723109694963,34.2242,155.66,155.57,6.6163]
[1723109695859,27.8,155.66,155.57,7.3545756]
[1723109696257,27.8,155.66,155.58,20.0]
[1723109697360,6.71585446,155.67,155.59,45.17]
[1723109697570,6.71585446,155.67,155.59,45.0]
[1723109699763,6.71585446,155.67,155.6,0.34]
[1723109700375,15.4003,155.69,155.6,0.34]
[1723109701897,15.4003,155.69,155.59,45.0]
[1723109701898,22.11610235,155.69,155.59,45.0]
[1723109702171,6.4238,155.68,155.59,45.0]
[1723109702376,6.71580235,155.69,155.6,0.17]
[1723109702572,13.13910235,155.69,155.59,45.0]
[1723109703770,6.71580235,155.69,155.59,45.0]
[1723109703981,6.71580235,155.69,155.6,22.8286]
[1723109704274,34.2227,155.7,155.61,65.17]
[1723109704444,27.8,155.7,155.61,20.0]
[1723109704648,6.4239,155.67,155.61,20.0]
[1723109704846,6.4239,155.67,155.6,22.6586]
[1723109705072,27.8,155.66,155.6,22.6586]
[1723109705275,27.8,155.66,155.44,27.8]
[1723109705276,15.0667,155.65,155.44,20.0]
[1723109705467,15.0667,155.65,155.51,21.5173]
[1723109705468,27.8,155.61,155.51,21.5173]
[1723109705679,390.92104283,155.64,155.51,21.5173]
[1723109705873,27.8,155.62,155.51,21.5173]
[1723109706077,6.4263,155.61,155.51,21.5173]
[1723109706272,6.4263,155.61,155.51,22.80301112]
[1723109706473,6.4263,155.61,155.52,1.28567103]
[1723109706890,6.4263,155.61,155.51,21.5173]
[1723109707065,27.8,155.62,155.51,21.5173]
[1723109707470,6.427,155.6,155.51,21.5173]
[1723109707893,34.227,155.6,155.51,21.5173]
[1723109708101,27.8,155.6,155.51,21.5173]
[1723109708390,34.2275,155.58,155.51,21.5173]
[1723109708574,27.8,155.58,155.51,21.5173]
[1723109708972,26.4271,155.59,155.51,21.5173]
[1723109709177,20.0,155.59,155.51,21.5173]
[1723109709592,26.4271,155.59,155.51,21.5173]
[1723109710179,6.4276,155.58,155.52,45.0]
[1723109710384,6.4276,155.58,155.51,21.5173]
[1723109711292,383.2,155.62,155.51,21.5173]
[1723109711478,27.8,155.6,155.52,1.62571545]
[1723109711801,27.8,155.6,155.52,45.17]
[1723109712173,20.0,155.59,155.52,45.0]
[1723109713598,26.4263,155.61,155.53,0.34]
[1723109713781,6.4272,155.59,155.52,45.0]
[1723109714301,6.4267,155.6,155.52,45.0]
[1723109714593,20.0,155.61,155.54,21.8377]
[1723109714777,383.2,155.64,155.55,46.62545385]
[1723109714971,383.2,155.64,155.55,45.34]
[1723109715171,6.4262,155.62,155.55,45.34]
[1723109715373,6.4262,155.62,155.55,45.0]
[1723109715374,6.4263,155.61,155.55,45.0]
[1723109715596,6.4263,155.61,155.54,21.8377]
[1723109716483,34.226,155.62,155.54,21.8377]
[1723109716679,20.0,155.61,155.55,45.0]
[1723109718395,6.7225133,155.63,155.55,46.28548623]
[1723109718578,6.7225133,155.63,155.56,0.34]
[1723109718779,6.7225133,155.63,155.56,20.34]
[1723109719078,6.4246,155.65,155.57,45.0]
[1723109719478,40.9388642,155.66,155.58,0.17]
[1723109719798,40.9388642,155.66,155.58,0.34]
[1723109720097,20.0,155.65,155.58,0.34]
[1723109721202,6.7145642,155.66,155.59,6.099]
[1723109721402,6.4218,155.72,155.61,15.4642]
[1723109721596,6.4218,155.72,155.62,20.17]
[1723109721786,6.4218,155.72,155.63,45.17]
[1723109721980,34.51167423,155.73,155.63,45.0]
[1723109722304,34.51167423,155.73,155.62,45.0]
[1723109722305,6.4234,155.68,155.62,45.0]
[1723109722801,6.4247,155.65,155.59,6.099]
[1723109723485,27.8,155.67,155.59,6.099]
[1723109723696,20.0,155.66,155.59,6.099]
[1723109724092,26.4243,155.66,155.59,6.099]
[1723109724300,26.4243,155.66,155.6,45.0]
[1723109724481,20.0,155.66,155.6,45.0]
[1723109724882,27.8,155.65,155.59,6.099]
[1723109725089,6.4251,155.64,155.59,6.099]
[1723109725502,27.8,155.65,155.59,6.099]
[1723109725807,20.0,155.64,155.59,6.099]
[1723109726302,26.4251,155.64,155.59,6.099]
[1723109726505,20.0,155.64,155.59,6.099]
[1723109727581,27.8,155.7,155.6,45.34]
[1723109727785,34.2218,155.72,155.61,21.2847957]
[1723109727986,6.4222,155.71,155.62,45.34]
[1723109728615,27.8,155.72,155.63,22.6777]
[1723109728796,27.8,155.72,155.64,45.34]
[1723109728991,6.4225,155.71,155.64,45.17]
[1723109729192,34.2218,155.72,155.64,45.17]
[1723109729506,6.71167423,155.73,155.65,0.17]
[1723109729691,6.71167423,155.73,155.65,20.17]
[1723109729889,6.71167423,155.73,155.66,45.17]
[1723109730115,27.8,155.74,155.67,0.17]
[1723109730289,27.8,155.74,155.67,1.45435733]
[1723109730489,27.8,155.74,155.68,0.17]
[1723109730801,27.8,155.74,155.68,1.4543627]
[1723109731017,34.50955705,155.76,155.69,6.5067]
[1723109731197,34.50955705,155.76,155.7,45.0]
[1723109731525,40.92965705,155.76,155.71,1.28426413]
[1723109731729,40.92965705,155.76,155.7,45.0]
[1723109731895,34.50955705,155.76,155.7,45.0]
[1723109732100,34.50955705,155.76,155.7,61.2959]
[1723109732428,6.70955705,155.76,155.71,0.34]
[1723109732600,6.70955705,155.76,155.71,0.17]
[1723109732922,27.8,155.77,155.71,1.62407537]
[1723109733216,27.8,155.77,155.71,0.34]
[1723109734116,6.71177057,155.78,155.71,0.34]
[1723109734327,34.51177057,155.78,155.71,0.34]
[1723109735408,27.8,155.76,155.7,16.2959]
[1723109736308,34.2202,155.76,155.7,16.2959]
[1723109736515,27.8,155.76,155.7,16.2959]
[1723109737335,6.4197,155.77,155.7,16.2959]
[1723109737516,6.71177057,155.78,155.71,45.34]
[1723109737700,34.51177057,155.78,155.71,45.34]
[1723109737907,34.51177057,155.78,155.71,45.17]
[1723109738115,34.51177057,155.78,155.71,45.0]
[1723109739344,6.71177057,155.78,155.73,6.5505]
[1723109739637,27.8,155.8,155.74,45.34]
[1723109739820,27.8,155.8,155.74,45.0]
[1723109740218,27.8,155.8,155.73,6.5505]
[1723109740415,27.8,155.8,155.74,45.0]
[1723109740614,396.32552442,155.81,155.73,6.5505]
[1723109740615,27.8,155.76,155.73,6.5505]
[1723109741024,27.8,155.78,155.74,0.17]
[1723109741410,27.8,155.78,155.73,6.5505]
[1723109742122,27.8,155.78,155.74,45.0]
[1723109742628,27.8,155.78,155.73,7.83438112]
[1723109742842,6.70742442,155.81,155.74,45.17]
[1723109743138,27.8,155.82,155.75,0.17]
[1723109743642,27.8,155.8,155.74,45.17]
[1723109743941,27.8,155.8,155.74,46.45370725]
[1723109744250,27.8,155.8,155.75,0.17]
[1723109744611,27.8,155.8,155.74,46.45373457]
[1723109745039,27.8,155.8,155.75,0.17]
[1723109745416,27.8,155.8,155.74,46.45358896]
[1723109745612,27.8,155.8,155.74,45.17]
[1723109745812,27.8,155.8,155.74,45.0]
[1723109746011,27.8,155.8,155.75,1.453833]
[1723109746212,27.8,155.8,155.74,45.0]
[1723109747009,27.8,155.8,155.74,46.28381343]
[1723109747852,27.8,155.8,155.75,0.17]
[1723109748142,27.8,155.8,155.75,1.62330066]
[1723109748827,21.8,155.82,155.75,1.62330066]
[1723109749224,21.8,155.82,155.75,0.34]
[1723109749760,28.2179,155.82,155.75,0.34]
[1723109750215,21.8,155.82,155.75,1.62372075]
[1723109750723,21.8,155.82,155.76,1.28367115]
[1723109750931,28.2177,155.82,155.75,0.34]
[1723109751129,27.8,155.82,155.75,1.62329322]
[1723109751648,34.2177,155.82,155.75,0.34]
[1723109752022,27.8,155.82,155.75,0.34]
[1723109752533,34.2177,155.82,155.75,0.34]
[1723109753816,40.92371718,155.82,155.75,0.34]
[1723109754912,34.50601718,155.82,155.75,0.34]
[1723109755428,40.92371718,155.82,155.75,0.34]
[1723109755629,40.92371718,155.82,155.76,1.28288104]
[1723109755943,6.70601718,155.82,155.77,23.0905]
[1723109756115,0.8466586,155.84,155.78,45.17]
[1723109756316,0.8466586,155.84,155.79,0.17]
[1723109756548,0.8466586,155.84,155.81,15.3692]
[1723109756751,6.70499752,155.86,155.83,6.1507]
[1723109756916,6.70499752,155.86,155.84,45.34]
[1723109757244,140.8466586,156.0,155.86,6.0135]
[1723109757421,27.8,155.98,155.87,94.38432035]
[1723109757623,34.2114,155.98,155.87,94.38432035]
[1723109757822,34.2114,155.98,155.87,66.58432035]
[1723109758026,27.8,155.98,155.87,66.58432035]
[1723109758234,27.8,155.99,155.87,94.38432035]
[1723109758437,27.8,155.97,155.87,66.58432035]
[1723109758747,168.6466586,156.0,155.88,29.04450159]
[1723109758954,175.0569586,156.0,155.89,65.34]
[1723109759156,175.0569586,156.0,155.9,1.24434233]
[1723109759334,175.0569586,156.0,155.91,6.7783]
[1723109759335,140.8466586,156.0,155.91,6.7783]
[1723109759536,140.8466586,156.0,155.92,46.2441827]
[1723109759746,140.8466586,156.0,155.93,0.34]
[1723109760134,27.8,155.97,155.91,6.4383]
[1723109760457,27.8,155.95,155.91,7.72073603]
[1723109760652,27.8,155.95,155.91,6.4383]
[1723109761623,34.2124,155.95,155.91,6.4383]
[1723109761824,27.8,155.95,155.91,6.4383]
[1723109762126,27.8,155.98,155.91,6.4383]
[1723109762453,34.2114,155.98,155.91,6.4383]
[1723109762748,20.0,155.97,155.86,6.6149]
[1723109762951,27.8,155.91,155.86,6.6149]
[1723109763159,34.2131,155.93,155.87,1.28282777]
[1723109763331,27.8,155.91,155.86,6.6149]
[1723109763726,6.4144,155.9,155.86,6.6149]
[1723109763927,27.8,155.87,155.81,6.0004]
[1723109764359,27.8,155.85,155.81,6.0004]
[1723109764724,34.2159,155.87,155.81,6.0004]
[1723109764929,27.8,155.87,155.81,6.0004]
[1723109765356,27.8,155.87,155.77,1.2832839]
[1723109765357,27.8,155.85,155.77,6.0525]
[1723109765652,27.8,155.83,155.77,6.0525]
[1723109765957,6.4168,155.84,155.77,6.0525]
[1723109766141,6.4173,155.83,155.77,6.0525]
[1723109766340,6.418,155.81,155.77,6.0525]
[1723109766735,6.4177,155.82,155.77,6.0525]
[1723109768435,6.4177,155.82,155.78,1.2837167]
[1723109768654,6.4182,155.81,155.77,6.0525]
[1723109768854,6.4192,155.79,155.72,6.0554]
[1723109769056,35.66,155.84,155.72,7.33913019]
[1723109769561,6.4184,155.81,155.72,7.33913019]
[1723109769851,6.4185,155.8,155.72,7.33913019]
[1723109770237,51.7029,155.84,155.72,7.33913019]
[1723109770455,35.66,155.81,155.72,6.0554]
[1723109770758,35.66,155.81,155.73,1.2842284]
[1723109770940,6.4193,155.78,155.67,1.28406259]
[1723109771142,6.4193,155.78,155.68,1.28399778]
[1723109771327,6.4199,155.77,155.67,1.28399778]
[1723109771749,6.4201,155.76,155.66,7.75870695]
[1723109771945,6.4196,155.78,155.66,7.75870695]
[1723109772141,35.66,155.81,155.66,7.75870695]
[1723109772767,6.4197,155.77,155.66,7.75870695]
[1723109772940,6.4197,155.77,155.67,0.17]
[1723109773129,6.4201,155.76,155.67,0.17]
[1723109773334,6.4201,155.76,155.67,20.0]
[1723109773966,6.4205,155.75,155.67,20.0]
[1723109774336,6.4205,155.75,155.68,1.28425849]
[1723109774531,6.4211,155.74,155.67,20.0]
[1723109775741,6.4218,155.72,155.66,6.4745]
[1723109776353,415.2932,155.8,155.66,6.4745]
[1723109776354,35.66,155.75,155.66,6.4745]
[1723109776562,418.86,155.75,155.66,6.4745]
[1723109776867,418.86,155.75,155.61,6.4487]
[1723109777040,45.0,155.74,155.61,7.73346112]
[1723109777234,51.71352925,155.74,155.61,7.73346112]
[1723109777434,6.4226,155.7,155.61,7.73346112]
[1723109778037,22.76652925,155.74,155.61,7.73346112]
[1723109778038,6.423,155.69,155.61,7.73346112]
[1723109778237,6.423,155.69,155.61,6.4487]
[1723109778675,6.4226,155.7,155.61,6.4487]
[1723109779346,6.4218,155.72,155.61,7.73315633]
[1723109779546,6.71352925,155.74,155.62,46.45447398]
[1723109780054,6.71352925,155.74,155.62,45.17]
[1723109780260,6.71352925,155.74,155.63,0.17]
[1723109780464,6.4225,155.71,155.63,0.17]
[1723109780777,6.71352925,155.74,155.62,45.17]
[1723109781167,6.4226,155.7,155.62,45.17]
[1723109781350,6.4232,155.69,155.62,0.17]
[1723109781545,6.4226,155.7,155.62,1.28483843]
[1723109781742,6.4218,155.72,155.62,65.0]
[1723109782050,6.4222,155.71,155.63,0.17]
[1723109782256,6.4227,155.7,155.63,1.22544823]
[1723109782684,6.4231,155.69,155.62,20.0]
[1723109782850,22.76652925,155.74,155.62,20.0]
[1723109782851,6.4218,155.72,155.63,45.0]
[1723109783274,13.13482925,155.74,155.63,46.22537841]
[1723109783467,6.71352925,155.74,155.64,0.17]
[1723109783650,6.71352925,155.74,155.64,0.34]
[1723109783855,6.4218,155.72,155.64,0.34]
[1723109784985,6.71352925,155.74,155.64,0.34]
[1723109784986,22.76602925,155.74,155.64,0.34]
[1723109785147,22.76602925,155.74,155.61,6.4487]
[1723109785350,6.4229,155.7,155.62,20.0]
[1723109785647,6.4222,155.71,155.63,0.17]
[1723109785849,27.78,155.71,155.63,0.17]
[1723109786049,34.2022,155.71,155.63,0.17]
[1723109786459,34.2022,155.71,155.63,0.34]
[1723109786773,34.2022,155.71,155.63,45.34]
[1723109787172,6.4239,155.67,155.61,6.4487]
[1723109787472,6.4243,155.66,155.61,6.4487]
[1723109788177,6.4239,155.67,155.61,6.4487]
[1723109788487,27.78,155.69,155.61,6.4487]
[1723109788655,34.203,155.69,155.61,6.4487]
[1723109789067,6.4237,155.68,155.61,6.4487]
[1723109789251,27.78,155.69,155.61,6.4487]
[1723109789778,27.78,155.71,155.62,1.28435369]
[1723109789981,6.4218,155.72,155.61,35.5133781]
[1723109790196,6.4218,155.72,155.62,20.0]
[1723109790359,6.4218,155.72,155.63,45.17]
[1723109790558,27.78,155.73,155.64,0.17]
[1723109790765,34.2014,155.73,155.64,0.17]
[1723109791484,16.2508,155.76,155.65,6.443]
[1723109791485,34.2008,155.75,155.65,6.443]
[1723109791658,27.78,155.75,155.66,66.6243211]
[1723109792085,40.90742496,155.77,155.66,66.6243211]
[1723109792279,40.90742496,155.77,155.67,6.398]
[1723109792580,6.4201,155.76,155.68,45.34]
[1723109792783,6.4207,155.75,155.68,45.34]
[1723109793079,6.4214,155.73,155.67,6.398]
[1723109793465,6.4218,155.72,155.67,6.398]
[1723109794066,6.4214,155.73,155.67,6.398]
[1723109794494,6.421,155.74,155.67,6.398]
[1723109795361,6.4214,155.73,155.67,6.398]
[1723109795757,6.4222,155.71,155.67,6.398]
[1723109795974,27.78,155.73,155.67,6.398]
[1723109795975,6.4226,155.7,155.67,6.398]
[1723109796180,27.78,155.73,155.67,6.398]
[1723109796379,6.4219,155.72,155.67,6.398]
[1723109796558,27.78,155.75,155.68,1.28456838]
[1723109796765,34.2008,155.75,155.68,1.28456838]
[1723109797187,34.2005,155.75,155.68,1.28456838]
[1723109797558,6.421,155.74,155.67,6.398]
[1723109798164,6.4213,155.73,155.67,6.398]
[1723109799685,6.421,155.74,155.67,6.398]
[1723109799981,27.78,155.75,155.67,6.398]
[1723109800188,6.4223,155.71,155.67,6.398]
[1723109800480,6.422,155.72,155.67,6.398]
[1723109801382,6.4223,155.71,155.67,6.398]
[1723109801979,6.4223,155.71,155.63,6.443]
[1723109801980,6.4226,155.7,155.63,6.443]
[1723109802179,27.78,155.71,155.63,6.443]
[1723109802390,34.2024,155.71,155.63,6.443]
[1723109803387,34.2024,155.71,155.62,7.69681404]
[1723109803576,6.4226,155.7,155.62,6.412]
[1723109803769,6.4226,155.7,155.62,6.242]
[1723109804293,6.4234,155.68,155.62,6.242]
[1723109804465,27.78,155.69,155.62,6.242]
[1723109804784,34.2025,155.71,155.63,1.28504364]
[1723109804986,27.78,155.71,155.63,1.28504364]
[1723109805370,34.2022,155.71,155.63,1.28504364]
[1723109805872,6.4227,155.7,155.62,6.582]
[1723109806189,6.4227,155.7,155.62,7.86681621]
[1723109806483,6.423,155.69,155.62,6.242]
[1723109806688,6.4235,155.68,155.62,6.242]
[1723109808194,27.78,155.68,155.62,6.242]
[1723109808374,34.2045,155.66,155.62,6.242]
[1723109808571,6.4247,155.65,155.62,6.242]
[1723109808767,6.4247,155.65,155.59,15.2824]
[1723109809383,6.4251,155.64,155.58,6.2034]
[1723109809682,27.78,155.64,155.58,6.2034]
[1723109809876,6.4256,155.63,155.58,6.2034]
[1723109810196,6.4259,155.62,155.58,6.2034]
[1723109810396,27.78,155.64,155.58,6.2034]
[1723109810967,6.4255,155.63,155.58,6.2034]
[1723109811176,6.4266,155.61,155.55,15.2301]
[1723109811405,6.4272,155.59,155.54,6.3151]
[1723109811895,34.2068,155.6,155.54,6.3151]
[1723109813070,6.4267,155.6,155.54,6.3151]
[1723109813472,34.50396973,155.61,155.54,6.3151]
[1723109814194,40.93066973,155.61,155.54,6.3151]
[1723109814717,7.67294283,155.6,155.54,6.3151]
[1723109815189,40.93036973,155.61,155.54,6.3151]
[1723109815496,34.50396973,155.61,155.54,6.3151]
[1723109815713,40.93046973,155.61,155.54,6.3151]
[1723109816915,7.67304283,155.6,155.54,6.3151]
[1723109817090,27.78,155.59,155.54,6.3151]
[1723109817275,34.2072,155.59,155.54,6.3151]
[1723109817475,1.24614283,155.58,155.54,6.3151]
[1723109817908,34.2072,155.59,155.54,6.3151]
[1723109818482,35.45334283,155.59,155.54,6.3151]
[1723109819098,27.78,155.59,155.54,6.3151]
[1723109819302,34.208,155.57,155.5,6.0093]
[1723109819605,27.78,155.57,155.5,6.0093]
[1723109819782,34.2083,155.57,155.5,6.0093]
[1723109820810,1.24614283,155.6,155.5,6.0093]
[1723109820995,34.2071,155.59,155.5,6.0093]
[1723109821696,7.67364283,155.58,155.5,6.0093]
[1723109821897,6.428,155.57,155.5,6.0093]
[1723109822498,6.4284,155.56,155.5,6.0093]
[1723109823010,40.93358525,155.57,155.5,6.0093]
[1723109824486,6.4284,155.56,155.5,6.0093]
[1723109824686,34.50558525,155.57,155.5,6.0093]
[1723109825797,40.93358525,155.57,155.5,6.0093]
[1723109825996,34.50558525,155.57,155.5,6.0093]
[1723109826203,40.93348525,155.57,155.5,6.0093]
[1723109826405,34.50558525,155.57,155.5,6.0093]
[1723109826914,40.93358525,155.57,155.5,6.0093]
[1723109827597,34.50558525,155.57,155.5,6.0093]
[1723109827805,40.93368525,155.57,155.5,6.0093]
[1723109828311,34.50558525,155.57,155.5,6.0093]
[1723109828517,34.2072,155.59,155.51,0.17]
[1723109828816,27.78,155.59,155.51,0.34]
[1723109829110,6.72466455,155.6,155.51,45.34]
[1723109829292,6.72466455,155.6,155.51,0.17]
[1723109829810,34.2072,155.59,155.51,0.17]
[1723109830201,34.2072,155.59,155.5,6.0093]
[1723109830707,27.78,155.59,155.51,0.17]
[1723109830908,6.72466455,155.6,155.51,45.34]
[1723109831110,6.72466455,155.6,155.52,1.28561524]
[1723109831291,417.4055,155.63,155.53,0.34]
[1723109831616,6.4259,155.62,155.54,15.123]
[1723109831789,6.4263,155.61,155.54,15.123]
[1723109833396,6.4259,155.62,155.54,15.123]
[1723109833811,6.4263,155.61,155.54,15.123]
[1723109834621,6.4259,155.62,155.55,6.5166]
[1723109834913,34.50331008,155.63,155.55,7.80217467]
[1723109835101,40.92881008,155.63,155.55,6.5166]
[1723109835488,40.92881008,155.63,155.55,7.80206203]
[1723109835703,34.50331008,155.63,155.55,6.5166]
[1723109836208,6.4259,155.62,155.55,6.5166]
[1723109837317,6.4264,155.61,155.55,6.5166]
[1723109837811,6.426,155.62,155.55,6.5166]
[1723109838203,6.4263,155.61,155.55,6.5166]
[1723109838600,27.78,155.61,155.55,6.5166]
[1723109838804,6.4277,155.58,155.55,6.5166]
[1723109839619,34.2072,155.59,155.55,6.5166]
[1723109839916,34.2064,155.61,155.55,6.5166]
[1723109840324,6.4267,155.6,155.55,6.5166]
[1723109840491,34.2063,155.61,155.55,6.5166]
[1723109841015,27.78,155.61,155.55,6.5166]
[1723109841224,6.4277,155.58,155.55,6.5166]
[1723109842213,34.50369919,155.61,155.55,6.5166]
[1723109842404,6.4263,155.61,155.55,6.5166]
[1723109843340,6.4259,155.62,155.55,6.5166]
[1723109843717,34.50358347,155.63,155.55,6.5166]
[1723109844023,6.4262,155.62,155.55,6.5166]
[1723109844202,6.4264,155.61,155.55,6.5166]
[1723109844923,6.4272,155.59,155.55,6.5166]
[1723109845130,7.67334283,155.59,155.55,6.5166]
[1723109848230,27.78,155.59,155.51,21.9922]
[1723109848819,34.2072,155.59,155.51,21.9922]
[1723109849539,6.4278,155.58,155.51,21.9922]
[1723109849834,34.208,155.57,155.51,21.9922]
[1723109850444,27.78,155.57,155.51,6.2911]
[1723109851131,6.4286,155.56,155.51,6.2911]
[1723109851512,7.67394283,155.58,155.51,6.2911]
[1723109851719,34.2078,155.58,155.51,6.2911]
[1723109852646,6.4281,155.57,155.51,6.2911]
[1723109852818,6.4284,155.56,155.51,6.2911]
[1723109853517,6.4288,155.55,155.51,6.2911]
[1723109854843,6.4284,155.56,155.51,6.2911]
[1723109856122,6.4289,155.55,155.51,6.2911]
[1723109857727,6.4289,155.55,155.47,15.6149]
[1723109857728,29.02614283,155.54,155.47,22.1332]
[1723109857922,6.4304,155.51,155.47,22.1332]
[1723109858119,27.78,155.52,155.47,6.5183]
[1723109858643,6.4305,155.51,155.47,6.5183]
[1723109860236,72.78,155.5,155.45,0.8466586]
[1723109860451,27.78,155.48,155.45,0.8466586]
[1723109861340,34.2125,155.46,155.45,0.8466586]
[1723109861539,34.2125,155.46,155.34,6.0118]
[1723109861540,6.434,155.43,155.34,6.0118]
[1723109861936,34.2133,155.44,155.34,6.0118]
[1723109862137,97.413,155.47,155.35,29.06698416]
[1723109862138,27.78,155.46,155.35,29.06698416]
[1723109862342,6.4346,155.41,155.34,6.0118]
[1723109862748,34.2142,155.42,155.34,6.0118]
[1723109863650,27.78,155.42,155.34,6.0118]
[1723109863841,6.4342,155.42,155.34,6.0118]
[1723109864149,34.2138,155.43,155.34,6.0118]
[1723109864329,34.2138,155.43,155.35,45.0]
[1723109864542,6.4341,155.42,155.34,6.0118]
[1723109864736,6.4345,155.42,155.34,6.0118]
[1723109864937,27.78,155.43,155.34,6.0118]
[1723109865251,6.4345,155.42,155.34,6.0118]
[1723109865450,34.2138,155.43,155.34,7.29904405]
[1723109865756,34.2138,155.43,155.34,6.0118]
[1723109866341,34.2138,155.43,155.35,0.34]
[1723109867137,6.4342,155.42,155.35,0.34]
[1723109867530,6.4348,155.41,155.34,6.0118]
[1723109867735,34.2148,155.41,155.34,6.0118]
[1723109868040,27.78,155.43,155.34,6.0118]
[1723109868247,6.72580207,155.44,155.35,21.28701301]
[1723109868445,6.72580207,155.44,155.37,21.6598]
[1723109868752,34.2121,155.47,155.38,20.0]
[1723109869055,6.4326,155.46,155.38,20.0]
[1723109869263,27.78,155.47,155.39,45.34]
[1723109869649,1.24614283,155.46,155.39,45.34]
[1723109869853,34.2122,155.47,155.39,45.34]
[1723109870639,27.78,155.47,155.39,45.34]
[1723109870937,6.72487501,155.49,155.42,6.4545]
[1723109871148,34.2092,155.54,155.43,21.62630946]
[1723109871345,6.43,155.52,155.44,45.0]
[1723109871549,6.43,155.52,155.43,20.17]
[1723109871550,27.78,155.52,155.43,20.17]
[1723109871755,27.78,155.52,155.44,45.0]
[1723109871951,34.2103,155.52,155.44,45.17]
[1723109872154,27.78,155.52,155.43,20.17]
[1723109872360,6.4304,155.51,155.43,20.17]
[1723109872565,27.78,155.52,155.43,20.17]
[1723109872851,27.78,155.52,155.43,20.0]
[1723109872852,34.2101,155.52,155.43,20.0]
[1723109873253,34.2101,155.52,155.44,0.34]
[1723109873558,6.4305,155.51,155.43,20.0]
[1723109875263,34.2102,155.52,155.43,20.0]
[1723109877458,34.2102,155.52,155.44,0.34]
[1723109877762,6.4305,155.51,155.44,0.34]
[1723109878360,34.2101,155.52,155.44,0.34]
[1723109878860,27.78,155.52,155.44,1.62640593]
[1723109879050,27.78,155.54,155.44,45.34]
[1723109879364,27.78,155.54,155.45,21.28604059]
[1723109879544,27.78,155.54,155.46,45.34]
[1723109879746,27.78,155.54,155.45,20.0]
[1723109879945,34.2092,155.54,155.44,0.17]
[1723109880143,34.2092,155.54,155.44,45.34]
[1723109880546,6.4297,155.53,155.44,45.34]
[1723109880753,27.78,155.54,155.45,20.0]
[1723109881057,34.2092,155.54,155.46,45.34]
[1723109881359,27.78,155.54,155.46,45.34]
[1723109881659,27.78,155.54,155.47,22.1227]
[1723109881860,6.4291,155.55,155.48,0.17]
[1723109882454,6.4292,155.54,155.47,22.1227]
[1723109882657,27.78,155.54,155.47,22.1227]
[1723109882961,34.2092,155.54,155.47,22.1227]
[1723109883845,6.4296,155.53,155.47,22.1227]
[1723109884052,6.43,155.52,155.47,22.1227]
[1723109884751,6.4296,155.53,155.47,22.1227]
[1723109884953,27.78,155.52,155.47,22.1227]
[1723109885155,27.78,155.5,155.47,6.5205]
[1723109885646,19.1,155.48,155.47,6.5205]
[1723109886165,19.1,155.48,155.43,21.5555]
[1723109886961,19.1,155.47,155.43,21.5555]
[1723109887955,19.1,155.46,155.43,21.5555]